Cogmind - Beta 14 @@@ ROGUE MODE // 2025.03.13 @ 21:11:45 Player: hoganstuff Result: Self-destructed Performance ------------- Evolutions (4) 2000 Regions Visited (8) 1600 Robots Destroyed (50) 250 Value Destroyed (950) 950 Prototype IDs (9) 180 Alien Tech Used (0) 0 Bonus (28) 28 TOTAL SCORE: 5008 Bonus ------- High Alert Combat Kills 28 Cogmind --------- Core Integrity 779/850 Matter 179/300 Energy 150/150 System Corruption 0% Temperature Cool (18) Movement Hovering (116) Ox1 Location -6/Factory Parts ------- > --- POWER (2) -------- Micro Nuclear Core > --- PROPULSION (6) --- Airjet Airjet Xenon Bombardment Thruster Xenon Bombardment Thruster > --- UTILITY (5) ------ Small Storage Unit Enhanced Optical Array Improved Melee Analysis Suite Core Analyzer Hacking Suite > --- WEAPON (2) ------- Impact Mace Impact Mace > --- INVENTORY (8) ---- Cooled Nuclear Pulse Thruster Advanced Terrain Scan Processor Armor Integrity Analyzer Advanced ECM Suite Improved Grenade Launcher Remote Datajack Peak State ------------ > --- POWER ------------ Light Ion Engine Micro Nuclear Core > --- PROPULSION ------- Xenon Bombardment Thruster Xenon Bombardment Thruster Xenon Bombardment Thruster Cooled Nuclear Pulse Thruster > --- UTILITY ---------- Small Storage Unit Improved Melee Analysis Suite Core Analyzer Improved Propulsion Shielding Hacking Suite > --- WEAPON ----------- Impact Mace Impact Mace > --- INVENTORY -------- Improved Deuterium Engine Xenon Bombardment Thruster Xenon Bombardment Thruster Xenon Bombardment Thruster Improved Sensor Array Advanced ECM Suite Improved Grenade Launcher Remote Datajack [Rating: 52] Favorites ----------- Power Light Ion Engine Engine Light Ion Engine Power Core Micro Nuclear Core Propulsion Xenon Bombardment Thruster Leg Aluminum Leg Hover Unit Airjet Flight Unit Xenon Bombardment Thruster Utility Small Storage Unit Device Seismic Detector Storage Small Storage Unit Processor Core Analyzer Hackware Hacking Suite Protection Improved Propulsion Shielding Weapon Assault Rifle Energy Gun EM Pulse Gun Ballistic Gun Assault Rifle Launcher Improved Grenade Launcher Impact Weapon Impact Mace Slashing Weapon Mining Claw Build | -11 -10 -10 -10 -8 -7 -7 -7 -6 ------- Run | Yrd Mat Min Sub Mat Fac Was Fac Fac Slots Evolved 8 | . . . . 4 2 . . 2 Power 1 | . . . . . 1 . . . Propulsion 4 | . . . . 2 . . . 2 Utility 3 | . . . . 2 1 . . . Weapon . | . . . . . . . . . Parts Attached 97 | 6 20 3 3 17 24 4 8 12 Power 17 | 1 2 . . 4 7 . . 3 Engine 14 | 1 2 . . 4 6 . . 1 Core 3 | . . . . . 1 . . 2 Reactor . | . . . . . . . . . Propulsion 29 | 2 7 . . 4 6 4 4 2 Treads . | . . . . . . . . . Leg 6 | 2 4 . . . . . . . Wheel . | . . . . . . . . . Hover 2 | . . . . . . . . 2 Flight 21 | . 3 . . 4 6 4 4 . Utility 27 | 1 6 . . 7 8 . 3 2 Device 10 | . 3 . . 3 2 . 2 . Storage 1 | 1 . . . . . . . . Processor 7 | . 1 . . 2 2 . . 2 Hackware 1 | . . . . . 1 . . . Protection 8 | . 2 . . 2 3 . 1 . Artifact . | . . . . . . . . . Weapon 24 | 2 5 3 3 2 3 . 1 5 Energy Gun 3 | . . 1 2 . . . . . Energy Cannon . | . . . . . . . . . Ballistic Gun 6 | 2 3 1 . . . . . . Ballistic Cannon . | . . . . . . . . . Launcher 4 | . 1 1 . . 1 . 1 . Special Weapon . | . . . . . . . . . Impact Weapon 10 | . . . 1 2 2 . . 5 Slashing Weapon 1 | . 1 . . . . . . . Piercing Weapon . | . . . . . . . . . Special Melee Weapon . | . . . . . . . . . Unidentified Prototypes 3 | . . . . 1 . 1 . 1 Parts Lost 9 | . 1 . . 2 . . 6 . Power 2 | . . . . 1 . . 1 . Propulsion 5 | . . . . 1 . . 4 . Utility 1 | . . . . . . . 1 . Weapon 1 | . 1 . . . . . . . Highest Loss Streak 6 | . 1 . . 1 . . 6 . To Critical Strikes . | . . . . . . . . . Average Slot Usage (%) 91 | . 96 100 91 89 91 100 95 63 Engine 11 | . 14 14 14 9 12 7 5 . Core 1 | . . . . . 1 7 7 5 Leg 10 | . 26 . . . . . . . Flight 18 | . 1 28 28 36 30 30 29 13 Device 5 | . 8 14 14 6 . . . . Storage 10 | . 14 14 14 9 7 7 7 6 Processor 7 | . . . . 10 15 15 15 19 Hackware 2 | . . . . . 7 7 7 6 Protection 3 | . 1 . . 9 6 7 5 . Ballistic Gun 11 | . 27 15 5 . . . . . Impact Weapon 5 | . . . 5 9 8 15 14 3 Peak Build Rating 52 | 6 8 8 14 27 49 52 50 47 Average Rating 22 | 4 6 8 10 20 41 49 47 37 On Entrance 21 | . 6 8 8 11 24 49 49 35 Naked Turns . | . . . . . . . . . Heaviest Build 24 | 12 15 14 14 17 24 22 23 17 Greatest Support 24 | 20 20 14 14 21 24 24 24 16 Greatest Overweight (x) 3 | 2 3 . . . . . 1 1 Average Overweight (x) . | . . . . . . . . . Largest Inventory Capacity 8 | 8 8 8 8 8 8 8 8 8 Average Capacity 7 | 7 8 8 8 8 8 8 8 8 Most Carried 8 | 2 8 8 8 8 8 8 8 8 Average Carried 7 | 1 6 8 7 6 7 7 7 7 Final Capacity 8 | 8 8 8 8 8 8 8 8 8 Final Carried 8 | 2 8 8 8 7 8 8 7 6 Class Distribution -------------------- 55% | Mutant 42% | Sprinter Dominant Class ---------------- Mutant | -10/Materials Mutant | -10/Mines Mutant | -10/Subcaves Sprinter | -8/Materials Sprinter | -7/Factory Sprinter | -7/Waste Sprinter | -7/Factory Mutant | -6/Factory Resources | -11 -10 -10 -10 -8 -7 -7 -7 -6 ----------- Run | Yrd Mat Min Sub Mat Fac Was Fac Fac Matter Collected 1391 | 253 443 61 95 171 266 . . 102 Remotely . | . . . . . . . . . Salvage Created 1618 | . 450 . . 373 617 . 39 139 Parts 60 | . 36 . . 6 15 . 2 1 Haulers Intercepted 8 | . 2 . . 3 2 . . 1 Recyclers Shooed 3 | . 1 . . . 2 . . . Parts Field Recycled . | . . . . . . . . . Retrieved Matter . | . . . . . . . . . Parts Self-Destructed . | . . . . . . . . . Prevented . | . . . . . . . . . Kills | -11 -10 -10 -10 -8 -7 -7 -7 -6 ------- Run | Yrd Mat Min Sub Mat Fac Was Fac Fac Combat Hostiles Destroyed 23 | . 15 . . 3 4 . 1 . Melee 1 | . . . . . . . 1 . Guns 13 | . 13 . . . . . . . AOE 2 | . 2 . . . . . . . Classes Destroyed 10 | . 5 . . 4 1 . . . Worker 3 | . 1 . . 1 1 . . . Tunneler 2 | . . . . . 2 . . . Hauler 8 | . 2 . . 3 2 . . 1 Recycler 2 | . . . . 1 1 . . . Operator 3 | . . . . 2 1 . . . Watcher 9 | . 2 . . 1 5 . . 1 Swarmer 12 | . 11 . . 1 . . . . Grunt 5 | . 4 . . . . . 1 . Sentry 3 | . . . . 1 2 . . . Hunter 3 | . . . . 1 2 . . . Best Kill Streak 5 | . 5 . . 2 3 . 1 2 Combat Bots Only 4 | . 4 . . 1 1 . 1 . Max Kills in Single Turn 3 | . 3 . . 1 1 . 1 1 Gunslinging . | . . . . . . . . . Exploded 2 | . 2 . . . . . . . Melee 1 | . . . . . . . 1 . Uniques/NPCs Destroyed . | . . . . . . . . . Combat | -11 -10 -10 -10 -8 -7 -7 -7 -6 -------- Run | Yrd Mat Min Sub Mat Fac Was Fac Fac Hostile Shots Fired 257 | . 57 6 4 64 60 . 51 15 Missed 114 | . 14 5 2 32 31 . 25 5 Damage Taken 1659 | . 419 12 35 378 284 . 410 121 Core 325 | . 49 . . 48 21 . 136 71 Absorbed by Shields 28 | . . . . . . . 28 . Redirected to Shielding 162 | . 2 . . 56 74 . 30 . Regen/Repaired (Parts) 45 | . . . . 10 35 . . . Core Remaining (%) 87 | 100 . . 80 91 . . 77 . Volleys Fired 50 | . 45 2 . . 2 . 1 . Largest 2 | . 2 1 . . 1 . 1 . Hottest 50 | . 50 30 . . 36 . 36 . Shots Fired 95 | . 90 2 . . 2 . 1 . Gun 89 | . 89 . . . . . . . Cannon . | . . . . . . . . . Launcher 6 | . 1 2 . . 2 . 1 . Special . | . . . . . . . . . Kinetic 89 | . 89 . . . . . . . Thermal . | . . . . . . . . . Explosive 6 | . 1 2 . . 2 . 1 . Electromagnetic . | . . . . . . . . . Robot Hit Streak 11 | . 10 . . . . . 11 . Robot Miss Streak 3 | . 3 . . . . . . . Penetration Max . | . . . . . . . . . Secondary Targets 1 | . 1 . . . . . . . Max Gunslinging Chain 1 | . 1 . . . . . . . Shots Hit Robots 98 | . 53 . . 17 22 . 3 3 Core Hits 33 | . 26 . . 2 4 . 1 . Critical Kills 4 | . 1 . . 1 1 . 1 . Critical Parts Destroyed 17 | . 2 . . 4 10 . . 1 Critical Strikes 21 | . 3 . . 5 11 . 1 1 Destroy 3 | . 3 . . . . . . . Smash 18 | . . . . 5 11 . 1 1 Melee Attacks 112 | . 3 . . 37 46 . 21 5 Impact 109 | . . . . 37 46 . 21 5 Slashing 3 | . 3 . . . . . . . Piercing . | . . . . . . . . . Sneak Attacks 16 | . . . . 6 9 . . 1 Combat Hostiles 2 | . . . . . 2 . . . Follow-up Attacks 1 | . . . . 1 . . . . Damage Inflicted 4064 | . 836 . . 1291 1569 . 177 191 Guns 661 | . 661 . . . . . . . Cannons . | . . . . . . . . . Explosions 183 | . 144 . . . . . 39 . Melee 3189 | . . . . 1291 1569 . 138 191 Ramming 31 | . 31 . . . . . . . Kinetic 661 | . 661 . . . . . . . Thermal . | . . . . . . . . . Explosive 183 | . 144 . . . . . 39 . Electromagnetic . | . . . . . . . . . Impact 3189 | . . . . 1291 1569 . 138 191 Slashing . | . . . . . . . . . Piercing . | . . . . . . . . . Highest Corruption 6 | . . . . 4 . 6 6 . Average Corruption 5 | . . . . 3 . 6 6 . Corruption Purged . | . . . . . . . . . Corruption Blocked . | . . . . . . . . . Effects 8 | . . . . 1 . 1 6 . Message Errors 2 | . . . . . . . 2 . Matter Fused 1 | . . . . 1 . . . . Heat Flow Errors 1 | . . . . . . . 1 . Energy Discharges 2 | . . . . . . . 2 . Parts Rejected 1 | . . . . . . 1 . . Data Loss (minor) 1 | . . . . . . . 1 . Overload Shots . | . . . . . . . . . Overflow Damage 1713 | . . . . 646 949 . 25 93 Projectiles 74 | . . . . 74 . . . . Explosions 5 | . . . . . . . 5 . Melee 1634 | . . . . 572 949 . 20 93 Knockbacks 12 | . . . . 3 6 . 2 1 Impact 10 | . . . . 2 6 . 1 1 Kinetic . | . . . . . . . . . Secondary 2 | . . . . 1 . . 1 . Self-Inflicted Damage 38 | . . . . . . . 38 . Shots 1 | . . . . . . . 1 . Rammed . | . . . . . . . . . Targets Rammed 9 | . 9 . . . . . . . Kicked 9 | . 9 . . . . . . . Crushed . | . . . . . . . . . Highest Temperature 266 | . . . . 224 16 2 266 . Average Temperature 48 | . . . . 95 2 2 97 . Received Heat Transfer 537 | . 108 6 6 99 90 . 174 54 Siege Activations . | . . . . . . . . . Robots Corrupted 22 | . . . . 8 12 . . 2 Combat Hostiles 7 | . . . . 3 4 . . . Parts Fried 38 | . . . . 12 24 . . 2 Impact Corruptions 49 | . . . . 19 26 . 1 3 Robots Melted . | . . . . . . . . . Combat Hostiles . | . . . . . . . . . Parts Melted . | . . . . . . . . . Heat Transferred . | . . . . . . . . . Parts Sabotaged . | . . . . . . . . . Parts Stolen . | . . . . . . . . . Parts Stripped . | . . . . . . . . . Power Chain Reactions . | . . . . . . . . . Alert | -11 -10 -10 -10 -8 -7 -7 -7 -6 ------- Run | Yrd Mat Min Sub Mat Fac Was Fac Fac Peak Influence 498 | . 255 56 . 498 493 188 265 148 Initial 158 | . . 37 . 13 142 158 131 102 Average 175 | . 101 38 . 223 318 168 171 115 Maximum Alert Level 2 | . 1 . . 2 2 . 1 . Low Security (%) 59 | 100 77 100 . 41 16 100 62 100 Level 1 33 | . 22 . . 46 60 . 37 . Level 2 7 | . . . . 12 22 . . . Level 3 . | . . . . . . . . . Level 4 . | . . . . . . . . . Level 5 . | . . . . . . . . . High Security . | . . . . . . . . . Max Security . | . . . . . . . . . Squads Dispatched 13 | . 3 . . 3 4 . 1 2 Investigation 11 | . 2 . . 2 4 . 1 2 Extermination . | . . . . . . . . . Reinforcement 2 | . 1 . . 1 . . . . Assault . | . . . . . . . . . Garrison . | . . . . . . . . . Intercept . | . . . . . . . . . Searches Triggered . | . . . . . . . . . Construction Impeded . | . . . . . . . . . Haulers Reinforced . | . . . . . . . . . Active Scanning Responses . | . . . . . . . . . Cargo Convoy Interrupts . | . . . . . . . . . Stealth | -11 -10 -10 -10 -8 -7 -7 -7 -6 --------- Run | Yrd Mat Min Sub Mat Fac Was Fac Fac Distress Signals 5 | . . 1 . 3 . . 1 . Communications Jammed . | . . . . . . . . . Distress Signals . | . . . . . . . . . Times Spotted 114 | . 22 4 2 32 26 6 17 5 Peak Tracking Total 12 | . 4 4 2 12 6 6 10 4 Tactical Retreats 21 | . 1 . . 8 7 . 5 . Traps | -11 -10 -10 -10 -8 -7 -7 -7 -6 ------- Run | Yrd Mat Min Sub Mat Fac Was Fac Fac Traps Triggered 8 | . 3 . . 2 1 . 2 . Indirectly . | . . . . . . . . . Trap Hack Attempts . | . . . . . . . . . Triggered . | . . . . . . . . . Disarmed . | . . . . . . . . . Reprogrammed . | . . . . . . . . . Reused . | . . . . . . . . . Traps Extracted . | . . . . . . . . . Installed . | . . . . . . . . . Triggered 2 | . . . . . 1 . 1 . Machines | -11 -10 -10 -10 -8 -7 -7 -7 -6 ---------- Run | Yrd Mat Min Sub Mat Fac Was Fac Fac Machines Disabled . | . . . . . . . . . Max in Single Turn . | . . . . . . . . . Machines Repaired . | . . . . . . . . . Machines Dismantled . | . . . . . . . . . Machines Sabotaged . | . . . . . . . . . Overloaded Fab Kills . | . . . . . . . . . Hacking | -11 -10 -10 -10 -8 -7 -7 -7 -6 --------- Run | Yrd Mat Min Sub Mat Fac Was Fac Fac Machines Accessed 54 | . 9 1 . 12 20 . 5 7 Terminals 33 | . 7 1 . 8 10 . 3 4 Fabricators 5 | . . . . . 2 . 1 2 Repair Stations 4 | . . . . 1 2 . 1 . Recycling Units 4 | . 2 . . 1 1 . . . Scanalyzers 5 | . . . . 2 3 . . . Garrison Access 3 | . . . . . 2 . . 1 Total Hacks 147 | . 27 3 . 42 42 . 16 17 Successful 74 | . 16 2 . 24 18 . 6 8 Failed 73 | . 11 1 . 18 24 . 10 9 Catastrophic 13 | . 1 1 . 3 5 . 3 . Database Lockouts . | . . . . . . . . . Manual 74 | . 16 2 . 23 16 . 10 7 Terminals 96 | . 24 3 . 27 22 . 11 9 Fabricators 14 | . . . . . 6 . 2 6 Repair Stations 9 | . . . . 2 4 . 3 . Recycling Units 8 | . 3 . . 2 3 . . . Scanalyzers 16 | . . . . 11 5 . . . Garrison Access 4 | . . . . . 2 . . 2 Terminal Hacks 23 | . 9 1 . 5 6 . 2 . Record 4 | . 2 . . . 2 . . . Robot Analysis 2 | . 2 . . . . . . . Prototype ID Bank 2 | . 1 . . 1 . . . . Open DSF 1 | . . . . . 1 . . . Branch Access Points 1 | . . . . . 1 . . . Emergency Access Points 1 | . 1 . . . . . . . Terminal Index 3 | . 1 . . . 1 . 1 . Alert Level 2 | . 1 . . 1 . . . . Unreport Threat 3 | . 1 . . . 1 . 1 . Dispatch Records 1 | . . . . 1 . . . . Recall Reinforcements 1 | . . . . 1 . . . . Zone Layout 2 | . . 1 . 1 . . . . Fabricator Hacks 11 | . . . . . 5 . 1 5 Network Status 3 | . . . . . 1 . 1 1 Load Schematic 4 | . . . . . 2 . . 2 Build 4 | . . . . . 2 . . 2 Repair Station Hacks 5 | . . . . 2 2 . 1 . Scan Component 3 | . . . . 1 1 . 1 . Repair 2 | . . . . 1 1 . . . Recycling Unit Hacks 1 | . . . . 1 . . . . Report Inventory 1 | . . . . 1 . . . . Scanalyzer 12 | . . . . 10 2 . . . Insert Component 5 | . . . . 4 1 . . . Analyze 7 | . . . . 6 1 . . . Garrison Access Hacks . | . . . . . . . . . Unauthorized Hacks 21 | . 6 1 . 6 3 . 2 3 Terminals 19 | . 6 1 . 5 2 . 2 3 Botnet 19 | . 6 1 . 5 2 . 2 3 Fabricators . | . . . . . . . . . Repair Stations . | . . . . . . . . . Recycling Units 1 | . . . . 1 . . . . Monitor 1 | . . . . 1 . . . . Scanalyzers 1 | . . . . . 1 . . . Extract 1 | . . . . . 1 . . . Garrison Access . | . . . . . . . . . Data Cores Recovered 3 | . . . . 2 1 . . . Used 1 | . . . . 1 . . . . Hacking Detections 52 | . 9 1 . 12 18 . 5 7 Full Trace Events 8 | . 1 . . 2 2 . 1 2 Feedback Events . | . . . . . . . . . Feedback Blocked . | . . . . . . . . . Robot Schematics Acquired . | . . . . . . . . . Robots Built . | . . . . . . . . . Authchips . | . . . . . . . . . Time . | . . . . . . . . . Total Robot Build Rating . | . . . . . . . . . Part Schematics Acquired 7 | . . . . 3 4 . . . Parts Built 2 | . . . . . 2 . . . Authchips . | . . . . . . . . . Time 240 | . . . . . 72 . . 168 Total Part Build Rating 6 | . . . . . 6 . . . Parts Repaired 2 | . . . . 1 1 . . . Time 64 | . . . . 26 38 . . . Parts Recycled . | . . . . . . . . . Recycled Matter . | . . . . . . . . . Retrieved Matter . | . . . . . . . . . Retrieved Components . | . . . . . . . . . Parts Scanalyzed 5 | . . . . 4 1 . . . Part Schematics Acquired 4 | . . . . 3 1 . . . Parts Damaged . | . . . . . . . . . Bothacking | -11 -10 -10 -10 -8 -7 -7 -7 -6 ------------ Run | Yrd Mat Min Sub Mat Fac Was Fac Fac Used RIF Installer . | . . . . . . . . . Robots Hacked . | . . . . . . . . . Non-combat . | . . . . . . . . . Combat . | . . . . . . . . . Robot Hacks Applied . | . . . . . . . . . Relay Couplers Released . | . . . . . . . . . Fabnet Peak Effective % . | . . . . . . . . . Robots Rewired . | . . . . . . . . . Allies Hacked . | . . . . . . . . . Hacks Repelled . | . . . . . . . . . Allies | -11 -10 -10 -10 -8 -7 -7 -7 -6 -------- Run | Yrd Mat Min Sub Mat Fac Was Fac Fac Total Allies . | . . . . . . . . . Largest Group . | . . . . . . . . . Highest-Rated Group . | . . . . . . . . . Highest-Rated Ally . | . . . . . . . . . Total Orders . | . . . . . . . . . Ally Attacks . | . . . . . . . . . Total Damage . | . . . . . . . . . Kills . | . . . . . . . . . Allies Corrupted . | . . . . . . . . . Allies Melted . | . . . . . . . . . Intel | -11 -10 -10 -10 -8 -7 -7 -7 -6 ------- Run | Yrd Mat Min Sub Mat Fac Was Fac Fac Robot Analysis Total 2 | . 2 . . . . . . . Derelict Logs Recovered 2 | . . . 2 . . . . . Drone Launches . | . . . . . . . . . Drone Recoveries . | . . . . . . . . . Exploration | -11 -10 -10 -10 -8 -7 -7 -7 -6 ------------- Run | Yrd Mat Min Sub Mat Fac Was Fac Fac Turns Passed 2792 | 65 1030 93 125 400 644 31 212 192 Spaces Moved 4189 | 46 651 199 315 794 1348 73 405 358 Core 9 | 9 . . . . . . . . Treads . | . . . . . . . . . Legs 628 | 37 591 . . . . . . . Wheels . | . . . . . . . . . Hover 96 | . . . . . . . . 96 Flight 3456 | . 60 199 315 794 1348 73 405 262 Fastest Speed 29 | 50 37 37 37 29 29 31 31 37 Average Speed 46 | 119 113 37 37 29 30 31 31 44 Slowest Speed 290 | 190 290 37 37 34 31 31 117 120 Overloaded Moves . | . . . . . . . . . Propulsion Burnouts . | . . . . . . . . . Robots Hopped 7 | . . . . . 5 . 1 1 Cave-ins Triggered . | . . . . . . . . . Exploration Rate (%) 43 | 3 96 37 25 70 45 89 14 13 Regions Visited 8 Branch Regions 2 Pre-discovered Areas 1 | . . . 1 . . . . . Known Exits Taken . | . . . . . . . . . Unknown Exits Taken 6 | 1 1 1 1 1 . . 1 . Scrap Searched 6 | . . 1 5 . . . . . Spaces Dug 76 | . . 13 . 9 38 . 14 2 Terrain Destroyed 93 | . 8 13 . 9 38 . 23 2 Melee 45 | . . . . 9 20 . 14 2 Projectile . | . . . . . . . . . AOE 48 | . 8 13 . . 18 . 9 . Terrain Rammed . | . . . . . . . . . Walls Destroyed . | . . . . . . . . . Machines Disabled . | . . . . . . . . . Actions | -11 -10 -10 -10 -8 -7 -7 -7 -6 --------- Run | Yrd Mat Min Sub Mat Fac Was Fac Fac Total 4761 | 53 845 214 324 909 1499 79 454 384 Wait 208 | . 89 11 . 29 61 . 18 . Move 4168 | 45 650 198 314 793 1338 72 402 356 Hop 7 | . . . . . 5 . 1 1 Pick Up 47 | 2 16 . 1 16 8 1 2 1 Fast Attach 20 | 6 1 . 2 2 3 2 . 4 Attach 26 | . 2 . . 9 5 . 3 7 Detach 16 | . 1 . 2 3 3 . 1 6 Swap 51 | . 17 3 1 6 16 2 5 1 Drop 50 | . 12 . 4 15 13 2 1 3 Fire 50 | . 45 2 . . 2 . 1 . Melee 106 | . 3 . . 36 45 . 17 5 Ram . | . . . . . . . . . Kick 9 | . 9 . . . . . . . Crush . | . . . . . . . . . Escape Stasis 3 | . . . . . . . 3 . Rewire . | . . . . . . . . . Trap . | . . . . . . . . . Miscellaneous . | . . . . . . . . . Route ------- -11/Scrapyard -10/Materials (discovered 3 exits: [*Mat x2] / *Min) -10/Mines (discovered 2 exits: [*Mat] / [*Sub]) -10/Subcaves -8/Materials (discovered 2 exits: *Fac x2) -7/Factory (discovered 4 exits: *Fac x2 / *Low x2) -7/Waste -7/Factory -6/Factory History --------- Turn | Location | Event 23 | -11/Scrapyard | Discovered new exit (range 15) 66 | -11/Scrapyard | Entered Materials 310 | -10/Materials | Build established: Mutant 399 | -10/Materials | Discovered new exit (range 3) 831 | -10/Materials | Discovered new exit (range 13) 1065 | -10/Materials | Discovered new exit (range 16) 1096 | -10/Materials | Entered Mines 1132 | -10/Mines | Assembled infested the area 1177 | -10/Mines | Discovered new exit (range 8) 1183 | -10/Mines | Discovered new exit (range 9) 1189 | -10/Mines | Entered Subcaves 1190 | -10/Subcaves | Learned Materials terminal intel 1193 | -10/Subcaves | Shifting Twisted Machinery released Flamer 1194 | -10/Subcaves | Shifting Twisted Machinery released Slug Cannon 1298 | -10/Subcaves | Discovered new exit (range 12) 1314 | -10/Subcaves | Entered Materials 1314 | -8/Materials | Evolved 4 slots: Propulsion x2, Utility x2 1315 | -8/Materials | Loaded intel: 12 terminal locations 1424 | -8/Materials | Repaired Flight Unit 1437 | -8/Materials | Discovered new exit (range 10) 1623 | -8/Materials | Discovered new exit (range 7) 1703 | -8/Materials | Build established: Sprinter 1714 | -8/Materials | Entered Factory 1714 | -7/Factory | Evolved 2 slots: Power x1, Utility x1 1723 | -7/Factory | Discovered new exit (range 14) 1853 | -7/Factory | Identified exit to Lower Caves 1888 | -7/Factory | Fabricated Hacking Suite? 1900 | -7/Factory | Repaired Imp. Propulsion Shielding 2130 | -7/Factory | Discovered new exit (range 9) 2333 | -7/Factory | Fabricated Hacking Suite? 2358 | -7/Factory | Sucked down chute 2358 | -7/Factory | Entered Waste 2371 | -7/Waste | Spotted C-40 Crusher 2372 | -7/Waste | Spotted C-40 Crusher 2373 | -7/Waste | EMP discharged 2373 | -7/Waste | Spotted C-40 Crusher 2376 | -7/Waste | Spotted C-40 Crusher 2379 | -7/Waste | Spotted C-40 Crusher 2382 | -7/Waste | Spotted C-40 Crusher 2384 | -7/Waste | Discovered new exit (range 16) 2389 | -7/Waste | Entered Factory 2574 | -7/Factory | Discovered new exit (range 11) 2601 | -7/Factory | Entered another Factory area 2601 | -6/Factory | Evolved 2 slots: Propulsion x2 2627 | -6/Factory | Lost 6 parts (1p4n1u) 2793 | -6/Factory | Self-destructed Last Messages --------------- >>Trojan(Botnet) Trojan loaded successfully. Testing... Terminal linked with 2 systems. Awaiting botnet instructions. 02778_ G-50 Soldier knocked back. 02780_ Connecting with Fabricator... >>Load(Xenon Bombardment Thruster) Uploading Xenon Bombardment Thruster schematic... Loaded successfully: Xenon Bombardment Thruster Rating: 4 Time: 84 Initiate build sequence. >>Build Building Xenon Bombardment Thruster... ETC: 84 02780_ ALERT: Unauthorized use of fabrication network. Dispatching investigation squad. Map ----- +----------------------------------------------------+ | ????????????##????### #???# #?# | | ??????????????????#"" ! #???# #?# | | ??????????????????#"T #???# #?# | | ??????????????????#"" #???# #?# | | ??????????????????### ############+### | | ????????????????????# | | ????????????????????# | | ????????????????????# | | ????????????????????# | | ???????????????????##t | | ???????????????????#" ################# | | ???????????????????#T #????????# ! | | ???????????????????#" #????????# | | ???????????????????## " F" +????????# | | ????????????????????# """" #????????# | | ???????############## ! #????????# """ "" | | ???????# # #????????# """ "" | | ???????# # ########????????# """ "" | | ???????# # #???????????????# | | ???????# # #???????????????# """ "" | | ???????# # +???????????????# """ "" | | ???????# + #???????????????# """ "" | | ???????# # #???????????????# | | ???????# # #???????????????######## | | ???????# # #??????????????????????? | | ???????# # @#??????????????????????? | | ???????# g #??????????????????????? | | ???????# g##### #??????????????????????? | | ???????###########/"#???# #??????????????????????? | | ??????????# #???# #??????????????????????? | | ??????????#]] """" #???# #??????????????????????? | | ??????????#] ""F" #???# #??????????????????????? | | ??????????# ] #???# #??????????????????????? | | ??????????#####/#####??? ??????????????????????? | | ?????????????? ???????? Y ??????????????????????? | | ?????????????##????????? ??????????????????????? | | ????????????????????????#+#??????????????????????? | | ?????????????????????????????????????????????????? | | ?????????????????????????????????????????????????? | | ?????????????????????????????????????????????????? | | ?????????????????????????????????????????????????? | | ?????????????????????????????????????????????????? | | ?????????????????????????????????????????????????? | | ?????????????????????????????????????????????????? | | ?????????????????????????????????????????????????? | | ?????????????????????????????????????????????????? | | ?????????????????????????????????????????????????? | | | | | | | +----------------------------------------------------+ Best States ------------- Heat Dissipation 37 Energy Generation 26 Energy Capacity 340 Matter Stores 300 Matter Capacity 300 Sight Range 22 Terrain Scan Density 10 ECM Strength 2 Additional Mass Support 6 Armor Coverage 150 Core Shielding 20 Propulsion Shielding 66 Evasion (%) 64 Melee Accuracy 11 Target Analysis 5 Core Analysis 6 Offensive Hacking 10 Item Schematics ----------------- Impact Mace | -8/Materials | Scanalyzed Cesium-ion Thruster | -8/Materials | Scanalyzed Hacking Suite | -8/Materials | Scanalyzed Xenon Bombardment Thruster | -7/Factory | Scanalyzed Imp. Medium Armor Plating | -7/Factory | Extracted Microactuators | -7/Factory | Extracted Hardlight Generator | -7/Factory | Extracted Robot Schematics ------------------ None Fabricated ------------ Hacking Suite | x1 | -7/Factory Hacking Suite | x1 | -7/Factory Alien Tech Used ----------------- None Achievements -------------- Short-term Sacrifices Challenges ------------ None Game ------ Seed HardenedPlatingRegenerator Manual? 0 Play Time 01:29:35 Cumulative 55.9 hours Start 2025.02.21 @ 22:18:23 End 2025.03.13 @ 21:11:45 Sessions 11 Manual Loads 0 Difficulty Rogue Special Mode None Game No. 44 Rogue 38 Adventurer 6 Explorer 0 Win Type - Total 0 Types 0/0/0/0/0/0/0/0/0 Lore% 31 Gallery% 40 Achievement% 35 Wizard Run 0 Options --------- Layout 1 ASCII 0 Keyboard 0 Movement Arrows Keybinds 0 Fullscreen 2 Font 24/Smallcaps Map View 50x35 Zoom Use 0% Tactical HUD 1 Map Filters NONE Filters NONE Steam 1 RUN: 59d30dbf-86ae-4408-b5da-1e05808a1006